Cogmind - Beta 15 @@@ ROGUE MODE // 2025.10.18 @ 10:32:35 Player: Grey Result: Destroyed by FZ-K2I(j) with Overtuned Pulse Rifle Performance ------------- Evolutions (0) 0 Regions Visited (4) 800 Robots Destroyed (20) 100 Value Destroyed (269) 269 Prototype IDs (2) 40 Alien Tech Used (0) 0 Bonus (800) 800 TOTAL SCORE: 2009 Bonus ------- Registered with UFD 300 Met Optimus in HQ 500 Cogmind --------- Core Integrity 0/250 Matter 284/300 Energy 150/150 System Corruption 0% Temperature Cool (50) Movement Treading (180) Ox2 Location -7/Scraptown Parts ------- > --- POWER (1) -------- Light Angular Momentum Engine > --- PROPULSION (2) --- Overtuned Treads Overtuned Treads > --- UTILITY (2) ------ Huge Storage Unit Makeshift Light Armor Plating > --- WEAPON (2) ------- High-powered Shotgun Overtuned Barrage Gun > --- INVENTORY (25) --- Improved Deuterium Engine Overtuned Treads Overtuned Treads Overtuned Treads Improved Heat Sink Large Storage Unit Compact Matter Pod (150) Structural Scanner Terrain Scanner Core Shielding Utility Shielding Makeshift Light Armor Plating Makeshift Light Armor Plating Hacking Suite System Shield A0-MCA's Component Scanner Recalibrator Overtuned Pulse Rifle Heavy Laser Barrage Gun Rocket Launcher Peak State ------------ > --- POWER ------------ Angular Momentum Engine > --- PROPULSION ------- Overtuned Treads Overtuned Treads > --- UTILITY ---------- Huge Storage Unit Makeshift Light Armor Plating > --- WEAPON ----------- High-powered Shotgun Overtuned Barrage Gun > --- INVENTORY -------- Improved Deuterium Engine Light Angular Momentum Engine Overtuned Treads Overtuned Treads Overtuned Treads Overtuned Treads Improved Heat Sink Large Storage Unit Large Battery Compact Matter Pod Structural Scanner Terrain Scanner Core Shielding Utility Shielding Makeshift Light Armor Plating Hacking Suite System Shield A0-MCA's Component Scanner Recalibrator Overtuned Pulse Rifle Heavy Laser Light Assault Rifle Light Assault Rifle Barrage Gun Rocket Launcher [Rating: 29] Favorites ----------- Power Angular Momentum Engine Engine Angular Momentum Engine Propulsion Armored Wheel Treads Overtuned Treads Wheel Armored Wheel Utility Huge Storage Unit Device Structural Scanner Storage Huge Storage Unit Protection Makeshift Light Armor Plating Weapon Light Assault Rifle Energy Gun Small Laser Ballistic Gun Light Assault Rifle Build | -11 -10 -10 -10 -7 ------- Run | Yrd Mat Min Sub Scr Slots Evolved . | . . . . . Power . | . . . . . Propulsion . | . . . . . Utility . | . . . . . Weapon . | . . . . . Parts Attached 29 | 6 7 3 . 13 Power 4 | 1 . 1 . 2 Engine 4 | 1 . 1 . 2 Core . | . . . . . Reactor . | . . . . . Propulsion 10 | 2 2 . . 6 Treads 4 | . . . . 4 Leg . | . . . . . Wheel 6 | 2 2 . . 2 Hover . | . . . . . Flight . | . . . . . Utility 6 | 1 4 . . 1 Device 1 | . 1 . . . Storage 3 | 1 2 . . . Processor . | . . . . . Hackware . | . . . . . Protection 2 | . 1 . . 1 Artifact . | . . . . . Weapon 9 | 2 1 2 . 4 Energy Gun 1 | 1 . . . . Energy Cannon . | . . . . . Ballistic Gun 8 | 1 1 2 . 4 Ballistic Cannon . | . . . . . Launcher . | . . . . . Special Weapon . | . . . . . Impact Weapon . | . . . . . Slashing Weapon . | . . . . . Piercing Weapon . | . . . . . Special Melee Weapon . | . . . . . Unidentified Prototypes . | . . . . . Parts Lost 5 | . 1 2 . 2 Power 1 | . . . . 1 Propulsion 1 | . . . . 1 Utility 1 | . 1 . . . Weapon 2 | . . 2 . . Highest Loss Streak 1 | . 1 1 . 1 To Critical Strikes . | . . . . . Average Backups 17 | 1 6 14 16 20 Power 1 | . 1 1 2 1 Propulsion 4 | . 2 6 6 5 Utility 6 | . 1 2 4 8 Weapon 4 | . 2 4 4 5 Tool/Special . | . . . . . Unused Backups 33 | . . 1 . 32 Power 4 | . . . . 4 Propulsion 8 | . . . . 8 Utility 15 | . . . . 15 Weapon 6 | . . 1 . 5 Tool/Special . | . . . . . Average Slot Usage (%) 99 | . 95 100 100 99 Engine 14 | . 14 14 14 14 Treads 1 | . . . . 2 Wheel 25 | . 28 28 28 24 Device 11 | . 2 14 14 12 Storage 14 | . 14 14 14 14 Protection 1 | . 7 . . 1 Ballistic Gun 27 | . 25 28 28 28 Peak Build Rating 29 | 6 10 11 11 29 Average Rating 14 | 3 7 10 11 17 On Entrance 7 | . 6 10 11 11 Naked Turns . | . . . . . Heaviest Build 103 | 11 90 88 86 103 Greatest Support 36 | 20 24 24 24 36 Greatest Overweight (x) 5 | . 4 3 3 5 Average Overweight (x) 2 | . 2 3 3 2 Largest Inventory Capacity 25 | 8 25 25 25 25 Average Capacity 24 | 6 21 25 25 25 Most Carried 25 | 3 13 17 16 25 Average Carried 17 | 1 6 14 16 20 Final Capacity 25 | 8 25 25 25 25 Final Carried 21 | 2 13 16 16 21 Class Distribution -------------------- 92% | Mutant 7% | Scavenger-Mutant Dominant Class ---------------- Mutant | -10/Materials Mutant | -10/Mines Mutant | -10/Subcaves Mutant | -7/Scraptown Resources | -11 -10 -10 -10 -7 ----------- Run | Yrd Mat Min Sub Scr Matter Collected 918 | 260 88 279 . 291 Remotely . | . . . . . Salvage Created 340 | . 126 153 . 61 Parts 42 | . 19 20 . 3 Haulers Intercepted . | . . . . . Recyclers Shooed 1 | . . 1 . . Parts Field Recycled . | . . . . . Retrieved Matter . | . . . . . Parts Self-Destructed . | . . . . . Prevented . | . . . . . Kills | -11 -10 -10 -10 -7 ------- Run | Yrd Mat Min Sub Scr Combat Hostiles Destroyed 19 | . 7 11 . 1 Guns 19 | . 7 11 . 1 Classes Destroyed 4 | . 3 . . 1 Watcher 1 | . 1 . . . Swarmer 17 | . 6 11 . . Grunt 1 | . 1 . . . Scrapper 1 | . . . . 1 Best Kill Streak 4 | . 4 4 . 1 Combat Bots Only 4 | . 4 4 . 1 Max Kills in Single Turn 2 | . 2 1 . 1 Gunslinging 1 | . 1 . . . Exploded . | . . . . . Melee . | . . . . . Uniques/NPCs Destroyed . | . . . . . Combat | -11 -10 -10 -10 -7 -------- Run | Yrd Mat Min Sub Scr Hostile Shots Fired 191 | . 37 60 . 94 Missed 55 | . 7 15 . 33 Hits 136 | . 30 45 . 61 Projectile 136 | . 30 45 . 61 Critical Strikes 2 | . . . . 2 Damage Taken 1533 | . 246 364 . 923 Core 251 | . 50 61 . 140 Absorbed by Shields . | . . . . . Regen/Repaired (Parts) 583 | . 480 . . 103 Core Remaining (%) 100 | 100 . . . . Volleys Fired 50 | . 14 28 . 8 Largest 2 | . 2 2 . 2 Hottest 55 | . 40 40 . 55 Shots Fired 92 | . 28 56 . 8 Gun 92 | . 28 56 . 8 Cannon . | . . . . . Launcher . | . . . . . Special . | . . . . . Kinetic 92 | . 28 56 . 8 Thermal . | . . . . . Explosive . | . . . . . Electromagnetic . | . . . . . Robot Hit Streak 8 | . 6 3 . 8 Robot Miss Streak 7 | . 4 7 . 1 Penetration Max . | . . . . . Secondary Targets 4 | . 2 2 . . Max Gunslinging Chain 1 | . 1 1 . . Shots Hit Robots 51 | . 15 28 . 8 Core Hits 26 | . 9 14 . 3 Critical Kills . | . . . . . Critical Parts Destroyed . | . . . . . Critical Strikes . | . . . . . Melee Attacks . | . . . . . Impact . | . . . . . Slashing . | . . . . . Piercing . | . . . . . Sneak Attacks . | . . . . . Combat Hostiles . | . . . . . Follow-up Attacks . | . . . . . Damage Inflicted 667 | . 183 299 . 185 Guns 667 | . 183 299 . 185 Cannons . | . . . . . Explosions . | . . . . . Melee . | . . . . . Ramming . | . . . . . Kinetic 667 | . 183 299 . 185 Thermal . | . . . . . Explosive . | . . . . . Electromagnetic . | . . . . . Impact . | . . . . . Slashing . | . . . . . Piercing . | . . . . . Highest Corruption . | . . . . . Average Corruption . | . . . . . Corruption Purged . | . . . . . Corruption Blocked . | . . . . . Overload Shots . | . . . . . Overflow Damage . | . . . . . Projectiles . | . . . . . Explosions . | . . . . . Melee . | . . . . . Knockbacks . | . . . . . Impact . | . . . . . Kinetic . | . . . . . Secondary . | . . . . . Self-Inflicted Damage . | . . . . . Shots . | . . . . . Rammed . | . . . . . Targets Rammed . | . . . . . Kicked . | . . . . . Crushed . | . . . . . Highest Temperature 58 | . . . . 58 Average Temperature 21 | . . . . 21 Received Heat Transfer 566 | . 12 . . 554 Siege Activations . | . . . . . Martial Activations . | . . . . . Shielding Activations . | . . . . . Robots Disrupted . | . . . . . Combat Hostiles . | . . . . . Robots Corrupted . | . . . . . Combat Hostiles . | . . . . . Parts Fried . | . . . . . Impact Corruptions . | . . . . . Robots Melted . | . . . . . Combat Hostiles . | . . . . . Parts Melted . | . . . . . Heat Transferred . | . . . . . Parts Sabotaged . | . . . . . Parts Stolen . | . . . . . Parts Stripped . | . . . . . Power Chain Reactions . | . . . . . Alert | -11 -10 -10 -10 -7 ------- Run | Yrd Mat Min Sub Scr Maximum Alert Level . | . . . . . Low Security (%) 100 | 100 100 100 . . Level 1 . | . . . . . Level 2 . | . . . . . Level 3 . | . . . . . Level 4 . | . . . . . Level 5 . | . . . . . High Security . | . . . . . Max Security . | . . . . . Peak Influence 106 | . 80 106 . . Initial 15 | . . 15 . . Average 33 | . 29 37 . . Influence Increases 432 | . 172 260 . . Destroy 0b10 Robot/C 360 | . 140 220 . . Destroy 0b10 Robot/NC 5 | . 5 . . . Destroy Leader 62 | . 22 40 . . Successful Hack 5 | . 5 . . . Influence Decreases 432 | . 132 234 66 . Entered New Map 60 | . . 25 35 . Time Decay 345 | . 125 189 31 . Lost Part 27 | . 7 20 . . Squads Dispatched 1 | . 1 . . . Investigation . | . . . . . Extermination . | . . . . . Reinforcement 1 | . 1 . . . Assault . | . . . . . Garrison . | . . . . . Intercept . | . . . . . Searches Triggered . | . . . . . Construction Impeded . | . . . . . Haulers Reinforced . | . . . . . Active Scanning Responses . | . . . . . Cargo Convoy Interrupts . | . . . . . Stealth | -11 -10 -10 -10 -7 --------- Run | Yrd Mat Min Sub Scr Distress Signals 4 | . 4 . . . Communications Jammed . | . . . . . Distress Signals . | . . . . . Times Spotted 66 | . 12 12 . 42 Peak Tracking Total 9 | . 6 5 . 9 Tactical Retreats . | . . . . . Traps | -11 -10 -10 -10 -7 ------- Run | Yrd Mat Min Sub Scr Traps Triggered . | . . . . . Indirectly . | . . . . . Trap Hack Attempts . | . . . . . Triggered . | . . . . . Disarmed . | . . . . . Reprogrammed . | . . . . . Reused . | . . . . . Traps Extracted . | . . . . . Installed . | . . . . . Triggered . | . . . . . Machines | -11 -10 -10 -10 -7 ---------- Run | Yrd Mat Min Sub Scr Machines Disabled . | . . . . . Max in Single Turn . | . . . . . Machines Repaired . | . . . . . Machines Dismantled . | . . . . . Machines Sabotaged . | . . . . . Overloaded Fab Kills . | . . . . . Hacking | -11 -10 -10 -10 -7 --------- Run | Yrd Mat Min Sub Scr Machines Accessed 7 | . 2 . . 5 Terminals 1 | . 1 . . . Fabricators . | . . . . . Repair Stations 1 | . 1 . . . Recycling Units . | . . . . . Scanalyzers . | . . . . . Garrison Access . | . . . . . Total Hacks 42 | . 5 . . 37 Successful 40 | . 3 . . 37 Failed 2 | . 2 . . . Catastrophic . | . . . . . Database Lockouts . | . . . . . Manual . | . . . . . Terminals 2 | . 2 . . . Fabricators . | . . . . . Repair Stations 3 | . 3 . . . Recycling Units . | . . . . . Scanalyzers . | . . . . . Garrison Access . | . . . . . Terminal Hacks 38 | . 1 . . 37 Record 37 | . . . . 37 Prototype ID Bank 1 | . 1 . . . Fabricator Hacks . | . . . . . Repair Station Hacks 2 | . 2 . . . Scan Component 1 | . 1 . . . Repair 1 | . 1 . . . Recycling Unit Hacks . | . . . . . Scanalyzer . | . . . . . Garrison Access Hacks . | . . . . . Unauthorized Hacks . | . . . . . Terminals . | . . . . . Fabricators . | . . . . . Repair Stations . | . . . . . Recycling Units . | . . . . . Scanalyzers . | . . . . . Garrison Access . | . . . . . Data Cores Recovered . | . . . . . Used . | . . . . . Hacking Detections 2 | . 2 . . . Full Trace Events . | . . . . . Feedback Events . | . . . . . Feedback Blocked . | . . . . . Robot Schematics Acquired . | . . . . . Robots Built . | . . . . . Authchips . | . . . . . Time . | . . . . . Total Robot Build Rating . | . . . . . Part Schematics Acquired . | . . . . . Parts Built . | . . . . . Authchips . | . . . . . Time . | . . . . . Total Part Build Rating . | . . . . . Parts Repaired 1 | . 1 . . . Time 26 | . 26 . . . Parts Recycled . | . . . . . Recycled Matter . | . . . . . Retrieved Matter . | . . . . . Retrieved Components . | . . . . . Parts Scanalyzed . | . . . . . Part Schematics Acquired . | . . . . . Parts Damaged . | . . . . . Bothacking | -11 -10 -10 -10 -7 ------------ Run | Yrd Mat Min Sub Scr Used RIF Installer . | . . . . . Robots Hacked . | . . . . . Non-combat . | . . . . . Combat . | . . . . . Robot Hacks Applied . | . . . . . Relay Couplers Released . | . . . . . Fabnet Peak Effective % . | . . . . . Robots Rewired . | . . . . . Allies Hacked . | . . . . . Hacks Repelled . | . . . . . Allies | -11 -10 -10 -10 -7 -------- Run | Yrd Mat Min Sub Scr Total Allies . | . . . . . Largest Group . | . . . . . Highest-Rated Group . | . . . . . Highest-Rated Ally . | . . . . . Total Orders . | . . . . . Ally Attacks . | . . . . . Total Damage . | . . . . . Kills . | . . . . . Allies Corrupted . | . . . . . Allies Melted 4 | . . . . 4 Intel | -11 -10 -10 -10 -7 ------- Run | Yrd Mat Min Sub Scr Active Infowar (turns) 3018 | . 74 650 167 2127 Structural 3018 | . 74 650 167 2127 Robot Analysis Total . | . . . . . Derelict Logs Recovered 2 | . . 1 1 . Drone Launches . | . . . . . Drone Recoveries . | . . . . . Exploration | -11 -10 -10 -10 -7 ------------- Run | Yrd Mat Min Sub Scr Turns Passed 3619 | 36 392 650 167 2374 Spaces Moved 2339 | 29 251 364 119 1576 Core 4 | 4 . . . . Treads 102 | . . . . 102 Legs . | . . . . . Wheels 2233 | 25 251 364 119 1474 Hover . | . . . . . Flight . | . . . . . Fastest Speed 50 | 50 80 135 135 135 Average Speed 134 | 75 116 135 135 138 Slowest Speed 240 | 80 140 135 135 240 Overloaded Moves . | . . . . . Propulsion Burnouts . | . . . . . Robots Hopped . | . . . . . Potential Cave-ins . | . . . . . Cave-ins Triggered . | . . . . . Exploration Rate (%) 47 | 3 51 85 11 86 Regions Visited 4 Branch Regions 3 Pre-discovered Areas . | . . . . . Known Exits Taken . | . . . . . Unknown Exits Taken 4 | 1 1 1 1 . Scrap Searched 6 | . . 1 . 5 Spaces Dug . | . . . . . Terrain Destroyed . | . . . . . Melee . | . . . . . Projectile . | . . . . . AOE . | . . . . . Terrain Rammed . | . . . . . Walls Destroyed . | . . . . . Machines Disabled . | . . . . . Actions | -11 -10 -10 -10 -7 --------- Run | Yrd Mat Min Sub Scr Total 2727 | 42 322 474 125 1764 Wait 223 | . 27 71 7 118 Move 2335 | 28 250 363 118 1576 Hop . | . . . . . Pick Up 61 | 8 19 7 . 27 Fast Attach . | . . . . . Attach 13 | 6 2 2 . 3 Detach . | . . . . . Swap 16 | . 5 1 . 10 Drop 29 | . 5 2 . 22 Fire 50 | . 14 28 . 8 Melee . | . . . . . Ram . | . . . . . Kick . | . . . . . Crush . | . . . . . Escape Stasis . | . . . . . Rewire . | . . . . . Trap . | . . . . . Miscellaneous . | . . . . . Route ------- -11/Scrapyard -10/Materials (discovered 2 exits: [*Mat] / [*Min]) -10/Mines (discovered 2 exits: [*Mat] / [*Sub]) -10/Subcaves (discovered 2 exits: [*Mat] / *Scr) -7/Scraptown (discovered 2 exits: [*Fac x2]) History --------- Turn | Location | Event 12 | -11/Scrapyard | Discovered new exit (range 16) 37 | -11/Scrapyard | Entered Materials 164 | -10/Materials | Repaired Huge Storage Unit 240 | -10/Materials | Discovered new exit (range 16) 303 | -10/Materials | Build established: Mutant 312 | -10/Materials | Discovered new exit (range 13) 429 | -10/Materials | Entered Mines 436 | -10/Mines | Received a Rocket Launcher from a helpful Derelict 458 | -10/Mines | Met a Derelict bent on vengeance 869 | -10/Mines | Learned Materials emergency access door positions 914 | -10/Mines | Discovered new exit (range 4) 1030 | -10/Mines | Discovered new exit (range 11) 1079 | -10/Mines | Entered Subcaves 1080 | -10/Subcaves | Approached by a straggling Scientist 1085 | -10/Subcaves | Learned Materials stockpile data 1209 | -10/Subcaves | Discovered new exit (range 17) 1214 | -10/Subcaves | Scientist uncovered a shortcut to Scraptown 1246 | -10/Subcaves | Entered Scraptown 1486 | -7/Scraptown | Visited Comm Corps 1549 | -7/Scraptown | Visited The Evicted 2019 | -7/Scraptown | Heard Great Nut preacher, LISTEN AND RECITE! 2067 | -7/Scraptown | Visited Red Mages 2135 | -7/Scraptown | Visited Assassins FH 2174 | -7/Scraptown | Visited Fellowship of the Rings 2213 | -7/Scraptown | Visited TADAMA 2228 | -7/Scraptown | Visited CR-KLE's Repair Center 2237 | -7/Scraptown | CR-KLE repaired 5 parts 2270 | -7/Scraptown | Visited UFD Registry 2405 | -7/Scraptown | Discovered new exit (range 5) 2548 | -7/Scraptown | Registered with UFD as "Protoeater" 2631 | -7/Scraptown | Visited Botcube Research 2668 | -7/Scraptown | Visited Scrap Suit Storage 2772 | -7/Scraptown | Discovered new exit (range 5) 2880 | -7/Scraptown | Visited Chapter 10 2928 | -7/Scraptown | Visited A0-MCA Data Center 2937 | -7/Scraptown | Given a B rating by A0-MCA 2939 | -7/Scraptown | Found A0-MCA's Component Scanner 2978 | -7/Scraptown | Visited Research Penetration Think Tank 3036 | -7/Scraptown | Met Optimus 3036 | -7/Scraptown | Accepted into 0bPrime 3204 | -7/Scraptown | Visited LU-1G1's Boring Crew 3268 | -7/Scraptown | Civil war broke out across Scraptown 3372 | -7/Scraptown | Lost 7 allies 3389 | -7/Scraptown | Core integrity fell below 50% 3447 | -7/Scraptown | Lost 3 allies 3520 | -7/Scraptown | Lost 4 allies 3525 | -7/Scraptown | Optimus destroyed in the chaos of civil war 3598 | -7/Scraptown | Core integrity fell below 20% 3620 | -7/Scraptown | Destroyed by FZ-K2I(j) with Overtuned Pulse Rifle Last Messages --------------- 03552_ Acquired Ovr. Treads. 03564_ V5-6LP(j) destroyed. 03576_ Acquired 10 matter. 03577_ 3W-IS7(p) destroyed. 03578_ Critical hit (Burn: +50). 03591_ 0K-CKE(j) heat damages Scrap Suit. 03597_ Ovr. Barrage Gun suddenly begins malfunctioning. 03600_ Angular Momentum Engine destroyed. 03601_ CJ-47I(j) switches sides: "I hope I'm right about this..." 03602_ AA-NJV(g) destroyed. 03604_ 0K-CKE(j) cannibalizes Ovr. Titanium Leg to repair Ovr. Titanium Leg. 03605_ 0K-CKE(j) destroyed. 03605_ RE-SPP(j) suffers critical hit (Burn). 03605_ RE-SPP(j) overheating. 03606_ RE-SPP(j) suffers critical hit (Burn). 03606_ RE-SPP(j) destroyed. 03607_ Acquired 21 matter. Map ----- +----------------------------------------------------+ | ?????????????????????????????????????????????????? | | ?????????????????????????????????????????????????? | | ?????????????????????????????????????????????????? | | ?????????????????????????????????????????????????? | | ???????????????????????????????????????#######???? | | ???????????????????????????????????????#######???? | | ????????#####################?######???##"""##???? | | ????????#############################??##" "##???? | | ???????##"""##"""##""|##"""##### ####### < ###??? | | ???????##"" ##"" ##"" ##!!"#### ###### ###??? | | ???????##"" [! ##??? | | ???????## !! ##??? | | ???????######################## ! ############??? | | ???????#########################==#############??? | | ?????????????????????###########!!#############??? | | ?????????????????????######## #!%#############??? | | ?????????????????????##"! " #*%#""""""""""##??? | | ?????????????????????##" =!"# #![### " ##??? | | ?????????????????????### !%X####!%## ! ""##??? | | ????????###"" """""####" = "#[%## %=* ""##??? | | # ######"#########"! !"#=%## %!! """"##??? | | ##########"" """"###"!% !"#%!## %= " ""##??? | | """""###"" """###"! !"#!!## !** """"##??? | | ### " &""###"! !"#[*!# %= ""##??? | | ###" """#### != =##*=###[/ "##??? | | """""???##" ### @*=!*g#%%#!=! ##??? | | ## ########### ###########j####%!%##%############# | | ## ########### ###########%#####=!##%############# | | "" """"""""" " """"" "="="*="""=!%""!"##"""""""""" | | % ! [%=!%![j=!%[*=!!"## """"""""" | | %! !*=%=!=*%!!!![[%"## """"""""" | | [ [ %=%=!=![%%!=!["## " """" | | *! =[[![![!*=!!!%"## """" | | !! [*[[==!!=[=!!* """" | | """"""""""""""""""""" *"""!!!%= "" """"""""" | | """"""""""""""""""""""""""""!% * "## ""!"""""" | | ""###### ################""![ ## """"""""" | | ""# ###########"" = ############ | | ""# X"##??????##" =%!% ##"""""""### | | ""# "" "" ###????####"" *%/## """"""##? | | ""# "" "" X"##########"" ! ## ""##? | | ""# " ######### """ ## ""##? | | "" "" = =[[!!! ""##? | | "" "" %= =% %[=%!="## "##? | | ""# " " ######### #" ! [ %=## ""##? | | ""# "" "" ""##########""%*!! "## " """"##? | | ""# "" "" ###????####"" !%= "###########? | | ""# X"##??????##"" =[! "###########? | | ""# ###########""== "### ###????? | | ""###### ################"" %[ """"######## | +----------------------------------------------------+ Best States ------------- Heat Dissipation 25 Energy Generation 18 Energy Capacity 300 Matter Stores 300 Matter Capacity 300 Sight Range 16 Terrain Scan Density 10 Armor Coverage 150 Evasion (%) 44 Recoil Reduction 2 Item Schematics ----------------- None Robot Schematics ------------------ None Fabricated ------------ Nothing Repaired ---------- Huge Storage Unit | 20% | -10/Materials Alien Tech Used ----------------- None Achievements -------------- None Challenges ------------ None Game ------ Seed DefenseLightningReactor Manual? 0 Play Time 01:07:54 Cumulative 27.0 hours Start 2025.10.18 @ 09:11:05 End 2025.10.18 @ 10:32:35 Sessions 1 Manual Loads 0 Difficulty Rogue Special Mode None Game No. 26 Rogue 26 Adventurer 0 Explorer 0 Win Type - Total 0 Types 0/0/0/0/0/0/0/0/0/0 Lore% 20 Gallery% 25 Achievement% 21 Wizard Run 0 Options --------- Layout 1 ASCII 0 Keyboard 0 Movement Mouse Keybinds 0 Fullscreen 1 Font 32/SmallcapsGlow Map View 50x35 Zoom Use 0% Tactical HUD 1 Map Filters NONE Filters NONE Steam 1 RUN: 5dbbe659-bb5b-4f9a-ab8b-3ccdd616f486